lending/lending_fUSD_20250114
["ID","MTS","AMOUNT","RATE_DAILY","PERIOD"]
[348910510,1736871061906,-500.0,0.00011063,2]
[348910511,1736871061917,-500.0,0.00011063,2]
[348910512,1736871061932,-500.0,0.00011063,2]
[348910513,1736871061942,-1408.95,0.00011063,2]
[348910514,1736871061955,-500.0,0.00011063,2]
[348910515,1736871062123,-500.0,0.00011063,2]
[348910516,1736871062135,-500.0,0.00011063,2]
[348910517,1736871062145,-908.24,0.00011063,2]
[348910518,1736871062155,-500.0,0.00011063,2]
[348910519,1736871062166,-500.0,0.00011063,2]
[348910520,1736871062176,-1406.37,0.00011063,2]
[348910521,1736871062185,-500.0,0.00011063,2]
[348910522,1736871062198,-1171.53,0.00011063,2]
[348910523,1736871062211,-884.27,0.00011063,2]
[348910524,1736871062220,-500.0,0.00011063,2]
[348910525,1736871062230,-500.0,0.00011063,2]
[348910526,1736871062239,-647.63,0.00011063,2]
[348910527,1736871062249,-500.0,0.00011063,2]
[348910528,1736871062259,-500.0,0.00011063,2]
[348910529,1736871062268,-1113.11,0.00011063,2]
[348910530,1736871062278,-991.47,0.00011063,2]
[348910531,1736871062287,-500.0,0.00011063,2]
[348910532,1736871062298,-1161.34,0.00011063,2]
[348910533,1736871062307,-1071.23,0.00011063,2]
[348910534,1736871062316,-789.98,0.00011063,2]
[348910535,1736871062326,-500.0,0.00011063,2]
[348910536,1736871062335,-1106.63,0.00011063,2]
[348910537,1736871062344,-500.0,0.00011063,2]
[348910538,1736871062354,-1112.53,0.00011063,2]
[348910539,1736871062363,-500.0,0.00011063,2]
[348910540,1736871062373,-1838.88,0.00011063,2]
[348910541,1736871062383,-500.0,0.00011063,2]
[348910542,1736871062392,-932.16,0.00011063,2]
[348910543,1736871062401,-500.0,0.00011063,2]
[348910544,1736871062412,-500.0,0.00011063,2]
[348910545,1736871062421,-500.0,0.00011063,2]
[348910546,1736871062431,-500.0,0.00011063,2]
[348910547,1736871062441,-500.0,0.00011063,2]
[348910548,1736871062450,-500.0,0.00011063,2]
[348910549,1736871062463,-976.4,0.00011063,2]
[348910550,1736871062473,-500.0,0.00011063,2]
[348910551,1736871062483,-500.0,0.00011063,2]
[348910552,1736871062493,-1337.66,0.00011063,2]
[348910553,1736871062502,-500.0,0.00011063,2]
[348910554,1736871062512,-572.39,0.00011063,2]
[348910555,1736871062522,-500.0,0.00011063,2]
[348910556,1736871062532,-758.83,0.00011063,2]
[348910557,1736871062541,-1232.64,0.00011063,2]
[348910558,1736871062551,-500.0,0.00011063,2]
[348910559,1736871062560,-1161.72,0.00011063,2]
[348910560,1736871062570,-500.0,0.00011063,2]
[348910561,1736871062580,-1402.03,0.00011063,2]
[348910562,1736871062589,-500.0,0.00011063,2]
[348910563,1736871062598,-500.0,0.00011063,2]
[348910564,1736871062608,-500.0,0.00011063,2]
[348910565,1736871062618,-500.0,0.00011063,2]
[348910566,1736871062627,-1098.11,0.00011063,2]
[348910567,1736871062637,-3138.43,0.00011063,2]
[348910568,1736871062647,-500.0,0.00011063,2]
[348910569,1736871062656,-500.0,0.00011063,2]
[348910570,1736871062666,-986.15,0.00011063,2]
[348910571,1736871062676,-659.72,0.00011063,2]
[348910572,1736871062685,-500.0,0.00011063,2]
[348910573,1736871062695,-500.0,0.00011063,2]
[348910574,1736871062705,-500.0,0.00011063,2]
[348910575,1736871062716,-500.0,0.00011063,2]
[348910576,1736871062727,-500.0,0.00011063,2]
[348910577,1736871062736,-500.0,0.00011063,2]
[348910578,1736871062746,-500.0,0.00011063,2]
[348910579,1736871062756,-1032.34,0.00011063,2]
[348910580,1736871062766,-500.0,0.00011063,2]
[348910581,1736871062776,-3452.91,0.00011063,2]
[348910582,1736871062785,-500.0,0.00011063,2]
[348910583,1736871062794,-1606.61,0.00011063,2]
[348910584,1736871062804,-500.0,0.00011063,2]
[348910585,1736871062814,-500.0,0.00011063,2]
[348910586,1736871062824,-1003.31,0.00011063,2]
[348910587,1736871062833,-979.54,0.00011063,2]
[348910588,1736871062843,-756.85,0.00011063,2]
[348910589,1736871062852,-1623.91,0.00011063,2]
[348910590,1736871062863,-4038.71,0.00011063,2]
[348910591,1736871062872,-500.0,0.00011063,2]
[348910592,1736871062881,-507.27,0.00011063,2]
[348910593,1736871062890,-500.0,0.00011063,2]
[348910594,1736871062900,-500.0,0.00011063,2]
[348910595,1736871062910,-1966.64,0.00011063,2]
[348910596,1736871062922,-500.0,0.00011063,2]
[348910597,1736871062932,-986.12,0.00011063,2]
[348910598,1736871062941,-621.32227671,0.00011063,2]
[348910599,1736871062951,-1121.12,0.00011064,2]
[348910600,1736871062963,-500.0,0.00011064,2]
[348910601,1736871062973,-2873.51,0.00011064,2]
[348910602,1736871062983,-2691.6,0.00011064,2]
[348910603,1736871062992,-1982.02132263,0.00011065,2]
[348910604,1736871063002,-224.539635,0.00011065,2]
[348910605,1736871063012,-224.539635,0.00011065,2]
[348910606,1736871063021,-771.32,0.00011066,2]
[348910607,1736871063032,-3648.35,0.00011094,2]
[348910608,1736871063041,-500.0,0.00011095,2]
[348910609,1736871063051,-1024.77,0.00011095,2]
[348910610,1736871063063,-666.0,0.00011098,2]
[348910611,1736871063074,-300.0,0.00011098,2]
[348910612,1736871063083,-300.0,0.00011098,2]
[348910613,1736871063094,-300.0,0.00011098,2]
[348910614,1736871063104,-300.0,0.00011098,2]
[348910615,1736871063114,-300.0,0.00011098,2]
[348910616,1736871063124,-300.0,0.00011098,2]
[348910617,1736871063134,-666.0,0.00011098,2]
[348910618,1736871063143,-300.0,0.00011098,2]
[348910619,1736871063154,-300.0,0.00011098,2]
[348910620,1736871063164,-300.0,0.00011098,2]
[348910621,1736871063174,-300.0,0.00011098,2]
[348910622,1736871063185,-81679.98979185,0.00011099,2]
[348910623,1736871063194,-31502.34555151,0.00011099,2]
[348910624,1736871063543,-50177.64424029,0.00011099,2]
[348910625,1736871063554,-81679.9897918,0.00011099,2]
[348910626,1736871063564,-81679.9897918,0.00011099,2]
[348910627,1736871063575,-81679.9897918,0.00011099,2]
[348910628,1736871063585,-81679.9897918,0.00011099,2]
[348910629,1736871063596,-81679.9897918,0.00011099,2]
[348910630,1736871063606,-81679.9897918,0.00011099,2]
[348910631,1736871063621,-81679.9897918,0.00011099,2]
[348910632,1736871063631,-81679.9897918,0.00011099,2]
[348910633,1736871063641,-86580.4853923,0.00011099,2]
[348910634,1736871063651,-86580.48539228,0.00011099,2]
[348910635,1736871063662,-86580.48539228,0.00011099,2]
[348910636,1736871063673,-86580.48539228,0.00011099,2]
[348910637,1736871063684,-86580.48539228,0.00011099,2]
[348910638,1736871063694,-86580.48539228,0.00011099,2]
[348910639,1736871063707,-86580.48539228,0.00011099,2]
[348910640,1736871063719,-86580.48539228,0.00011099,2]
[348910641,1736871063729,-86580.48539228,0.00011099,2]
[348910642,1736871063739,-86580.48539228,0.00011099,2]
[348910643,1736871063748,-224.539635,0.00011099,2]
[348910644,1736871063758,-224.539635,0.00011099,2]
[348910645,1736871063770,-151.0,0.00011099,2]
[348910646,1736871063780,-3000.0,0.000111,2]
[348910647,1736871063790,-2000.0,0.0001111,2]
[348910648,1736871063799,-200.0,0.0001111,2]
[348910649,1736871063809,-200.0,0.0001111,2]
[348910650,1736871063820,-429.35633264,0.00011167,2]
[348910651,1736871063830,-1000.0,0.00011213,2]
[348910652,1736871063840,-2000.0,0.00011221,2]
[348910653,1736871063851,-200.0,0.00011221,2]
[348910654,1736871063861,-200.0,0.00011221,2]
[348910655,1736871063871,-300.0,0.00011226,2]
[348910656,1736871063882,-300.0,0.00011226,2]
[348910657,1736871063892,-300.0,0.00011226,2]
[348910658,1736871063902,-300.0,0.00011226,2]
[348910659,1736871063913,-300.0,0.00011226,2]
[348910660,1736871063926,-300.0,0.00011226,2]
[348910661,1736871063936,-300.0,0.00011226,2]
[348910662,1736871063945,-151.0,0.00011227,2]
[348910663,1736871063959,-2980.66,0.00011227,2]
[348910664,1736871063972,-2856.47,0.00011227,2]
[348910665,1736871063982,-500.0,0.00011227,2]
[348910666,1736871063992,-758.96,0.00011227,2]
[348910667,1736871064004,-280.38048636,0.00011227,2]
[348910668,1736871064015,-500.0,0.00011227,2]
[348910669,1736871064024,-500.0,0.00011227,2]
[348910670,1736871064034,-500.0,0.00011227,2]
[348910671,1736871064043,-500.0,0.00011227,2]
[348910672,1736871064053,-500.0,0.00011227,2]
[348910673,1736871064063,-500.0,0.00011227,2]
[348910674,1736871064073,-909.28,0.00011227,2]
[348910675,1736871064082,-500.0,0.00011227,2]
[348910676,1736871064093,-500.0,0.00011227,2]
[348910677,1736871064102,-1419.13,0.00011227,2]
[348910678,1736871064112,-580.83,0.00011227,2]
[348910679,1736871064121,-1079.36,0.00011227,2]
[348910680,1736871064131,-500.0,0.00011227,2]
[348910681,1736871064141,-1965.67,0.00011227,2]
[348910682,1736871064151,-781.46,0.00011227,2]
[348910683,1736871064161,-770.01,0.00011227,2]
[348910684,1736871064171,-846.81,0.00011227,2]
[348910685,1736871064181,-500.0,0.00011227,2]
[348910686,1736871064192,-2006.35,0.00011227,2]
[348910687,1736871064202,-654.46,0.00011227,2]
[348910688,1736871064216,-500.0,0.00011227,2]
[348910689,1736871064226,-901.18,0.00011227,2]
[348910690,1736871064237,-500.0,0.00011227,2]
[348910691,1736871064247,-500.0,0.00011227,2]
[348910692,1736871064258,-1306.8,0.00011227,2]
[348910693,1736871064269,-500.0,0.00011227,2]
[348910694,1736871064279,-500.0,0.00011227,2]
[348910695,1736871064290,-500.0,0.00011227,2]
[348910696,1736871064300,-500.0,0.00011227,2]
[348910697,1736871064310,-500.0,0.00011227,2]
[348910698,1736871064320,-3230.9,0.00011227,2]
[348910699,1736871064329,-500.0,0.00011227,2]
[348910700,1736871064339,-635.34,0.00011227,2]
[348910701,1736871064349,-898.98,0.00011227,2]
[348910702,1736871064556,-2567.78,0.00011227,2]
[348910703,1736871064567,-1137.06,0.00011227,2]
[348910704,1736871064578,-3490.51,0.00011227,2]
[348910705,1736871064588,-500.0,0.00011227,2]
[348910706,1736871064599,-500.0,0.00011227,2]
[348910707,1736871064610,-500.0,0.00011227,2]
[348910708,1736871064621,-4025.46,0.00011227,2]
[348910709,1736871064631,-500.0,0.00011227,2]
[348910710,1736871064641,-1007.3,0.00011227,2]
[348910711,1736871064652,-750.73,0.00011227,2]
[348910712,1736871064662,-1091.89,0.00011227,2]
[348910713,1736871064672,-1201.57,0.00011227,2]
[348910714,1736871064682,-500.0,0.00011227,2]
[348910715,1736871064692,-1990.98,0.00011227,2]
[348910716,1736871064701,-500.0,0.00011227,2]
[348910717,1736871064715,-500.0,0.00011227,2]
[348910718,1736871064725,-500.0,0.00011227,2]
[348910719,1736871064735,-4203.17,0.00011227,2]
[348910720,1736871064745,-1232.44,0.00011227,2]
[348910721,1736871064755,-794.71,0.00011227,2]
[348910722,1736871064766,-500.0,0.00011227,2]
[348910723,1736871064775,-500.0,0.00011227,2]
[348910724,1736871064785,-500.0,0.00011227,2]
[348910725,1736871064794,-500.0,0.00011227,2]
[348910726,1736871064805,-747.81,0.00011227,2]
[348910727,1736871064815,-500.0,0.00011227,2]
[348910728,1736871064826,-867.01,0.00011227,2]
[348910729,1736871064835,-500.0,0.00011227,2]
[348910730,1736871064846,-1686.06,0.00011227,2]
[348910731,1736871064857,-780.53,0.00011227,2]
[348910732,1736871064867,-500.0,0.00011227,2]
[348910733,1736871064877,-825.75,0.00011227,2]
[348910734,1736871064886,-1495.35,0.00011227,2]
[348910735,1736871064896,-2775.69,0.00011227,2]
[348910736,1736871064907,-680.38,0.00011227,2]
[348910737,1736871064917,-561.88515349,0.00011228,2]
[348910738,1736871064931,-500.0,0.00011228,2]
[348910739,1736871064948,-500.0,0.00011228,2]
[348910740,1736871064963,-500.0,0.00011228,2]
[348910741,1736871064973,-500.0,0.00011228,2]
[348910742,1736871064983,-500.0,0.00011228,2]
[348910743,1736871064993,-500.0,0.00011228,2]
[348910744,1736871065004,-391.20200386,0.00011228,2]
[348910745,1736871065014,-500.0,0.00011228,2]
[348910746,1736871065024,-500.0,0.00011228,2]
[348910747,1736871065033,-500.0,0.00011228,2]
[348910748,1736871065043,-500.0,0.00011228,2]
[348910749,1736871065053,-500.0,0.00011228,2]
[348910750,1736871065063,-500.0,0.00011228,2]
[348910751,1736871065072,-500.0,0.00011228,2]
[348910752,1736871065082,-240.05175586,0.00011228,2]
[348910753,1736871065092,-500.0,0.00011228,2]
[348910754,1736871065102,-424.26620858,0.00011228,2]
[348910755,1736871065112,-500.0,0.00011228,2]
[348910756,1736871065123,-500.0,0.00011228,2]
[348910757,1736871065133,-500.0,0.00011228,2]
[348910758,1736871065143,-500.0,0.00011228,2]
[348910759,1736871065153,-500.0,0.00011228,2]
[348910760,1736871065164,-500.0,0.00011228,2]
[348910761,1736871065174,-989.66,0.00011228,2]
[348910762,1736871065185,-500.0,0.00011228,2]
[348910763,1736871065195,-500.0,0.00011228,2]
[348910764,1736871065208,-500.0,0.00011228,2]
[348910765,1736871065219,-500.0,0.00011228,2]
[348910766,1736871065229,-1178.11,0.00011228,2]
[348910767,1736871065240,-500.0,0.00011228,2]
[348910768,1736871065250,-1018.69,0.00011228,2]
[348910769,1736871065260,-500.0,0.00011228,2]
[348910770,1736871065270,-500.0,0.00011228,2]
[348910771,1736871065281,-1169.13,0.00011228,2]
[348910772,1736871065291,-500.0,0.00011228,2]
[348910773,1736871065302,-500.0,0.00011228,2]
[348910774,1736871065312,-500.0,0.00011228,2]
[348910775,1736871065323,-761.68,0.00011228,2]
[348910776,1736871065333,-500.0,0.00011228,2]
[348910777,1736871065343,-500.0,0.00011228,2]
[348910778,1736871065353,-500.0,0.00011228,2]
[348910779,1736871065364,-500.0,0.00011232,2]
[348910780,1736871065375,-486.47,0.00011265,2]
[348910781,1736871065386,-1760.13569846,0.00011279,2]
[348910782,1736871065397,-300.0,0.00011323,2]
[348910783,1736871065407,-300.0,0.00011323,2]
[348910784,1736871065417,-300.0,0.00011323,2]
[348910785,1736871065427,-300.0,0.00011323,2]
[348910786,1736871065438,-74696.2047238,0.00011324,2]
[348910787,1736871065448,-500.0,0.00011328,2]
[348910788,1736871065461,-500.0,0.00011328,2]
[348910789,1736871065470,-1181.698318,0.00011328,2]
[348910790,1736871065480,-500.0,0.00011328,2]
[348910791,1736871065491,-1134.687651,0.00011328,2]
[348910792,1736871065501,-5067.93,0.00011328,2]
[348910793,1736871065511,-1401.93,0.00011328,2]
[348910794,1736871065521,-772.78,0.00011328,2]
[348910795,1736871065531,-500.0,0.00011328,2]
[348910796,1736871065541,-500.0,0.00011328,2]
[348910797,1736871065552,-5155.07,0.00011328,2]
[348910798,1736871065562,-603.01,0.00011328,2]
[348910799,1736871065572,-11226.25,0.00011329,2]
[348910800,1736871065582,-1592.98,0.00011329,2]
[348910801,1736871065593,-1029.22,0.00011329,2]
[348910802,1736871065603,-3058.42,0.00011329,2]
[348910803,1736871065614,-500.0,0.00011329,2]
[348910804,1736871065624,-1564.97,0.00011329,2]
[348910805,1736871065636,-2074.04,0.00011329,2]
[348910806,1736871065647,-500.0,0.00011329,2]
[348910807,1736871065657,-1000.0,0.00011329,2]
[348910808,1736871065667,-200.0,0.00011333,2]
[348910809,1736871065678,-200.0,0.00011333,2]
[348910810,1736871065688,-500.0,0.00011335,2]
[348910811,1736871065699,-2904.81,0.00011335,2]
[348910812,1736871065712,-4220.93,0.00011335,2]
[348910813,1736871065722,-2444.68,0.00011335,2]
[348910814,1736871065732,-500.0,0.00011335,2]
[348910815,1736871065742,-1614.87,0.00011335,2]
[348910816,1736871065752,-4028.3,0.00011335,2]
[348910817,1736871065762,-1618.39,0.00011335,2]
[348910818,1736871065771,-886.17,0.00011335,2]
[348910819,1736871065781,-429.35633264,0.00011335,2]
[348910820,1736871065791,-1130.9,0.00011335,2]
[348910821,1736871065801,-500.0,0.00011335,2]
[348910822,1736871065812,-500.0,0.00011335,2]
[348910823,1736871065822,-729.07,0.00011335,2]
[348910824,1736871065832,-1516.25,0.00011336,2]
[348910825,1736871065842,-1166.86,0.00011336,2]
[348910826,1736871065852,-866.05,0.00011336,2]
[348910827,1736871065863,-2397.33,0.00011336,2]
[348910828,1736871065873,-2203.87,0.00011336,2]
[348910829,1736871065882,-916.24,0.00011336,2]
[348910830,1736871065893,-3485.69,0.00011336,2]
[348910831,1736871065902,-1636.73,0.00011336,2]
[348910832,1736871065912,-3444.85,0.00011336,2]
[348910833,1736871065926,-1321.96,0.00011336,2]
[348910834,1736871065936,-10463.04,0.00011336,2]
[348910835,1736871065946,-577.25508495,0.00011336,2]
[348910836,1736871065959,-1225.56,0.00011336,2]
[348910837,1736871065968,-1265.15,0.00011336,2]
[348910838,1736871065978,-1679.51,0.00011336,2]
[348910839,1736871065989,-1588.58,0.00011336,2]
[348910840,1736871066000,-4193.47,0.00011336,2]
[348910841,1736871066011,-2969.84,0.00011336,2]
[348910842,1736871066021,-300.0,0.00011336,2]
[348910843,1736871066031,-1960.51,0.00011336,2]
[348910844,1736871066042,-3425.16,0.00011336,2]
[348910845,1736871066052,-683.13,0.00011336,2]
[348910846,1736871066062,-1742.27,0.00011336,2]
[348910847,1736871066073,-2066.36,0.00011336,2]
[348910848,1736871066083,-936.52,0.00011336,2]
[348910849,1736871066093,-1668.95,0.00011336,2]
[348910850,1736871066103,-2624.9,0.00011336,2]
[348910851,1736871066113,-1793.98,0.00011337,2]
[348910852,1736871066122,-4746.78,0.00011337,2]
[348910853,1736871066132,-2018.85,0.00011337,2]
[348910854,1736871066141,-500.0,0.00011337,2]
[348910855,1736871066150,-3920.54,0.00011337,2]
[348910856,1736871066160,-500.0,0.00011337,2]
[348910857,1736871066170,-500.0,0.00011337,2]
[348910858,1736871066179,-646.76,0.00011337,2]
[348910859,1736871066188,-583.25,0.00011337,2]
[348910860,1736871066199,-500.0,0.00011337,2]
[348910861,1736871066212,-856.09,0.00011337,2]
[348910862,1736871066223,-1159.82,0.00011337,2]
[348910863,1736871066232,-1932.24,0.00011337,2]
[348910864,1736871066242,-526.42,0.00011337,2]
[348910865,1736871066252,-862.17,0.00011337,2]
[348910866,1736871066261,-1142.27,0.00011337,2]
[348910867,1736871066271,-500.0,0.00011337,2]
[348910868,1736871066281,-1780.43,0.00011337,2]
[348910869,1736871066292,-500.0,0.00011337,2]
[348910870,1736871066302,-500.0,0.00011337,2]
[348910871,1736871066312,-500.0,0.00011337,2]
[348910872,1736871066323,-500.0,0.00011337,2]
[348910873,1736871066333,-500.0,0.00011337,2]
[348910874,1736871066343,-500.0,0.00011337,2]
[348910875,1736871066353,-1149.97,0.00011337,2]
[348910876,1736871066362,-500.0,0.00011337,2]
[348910877,1736871066372,-1199.59,0.00011337,2]
[348910878,1736871066382,-500.0,0.00011337,2]
[348910879,1736871066392,-1173.44,0.00011337,2]
[348910880,1736871066402,-500.0,0.00011337,2]
[348910881,1736871066411,-500.0,0.00011337,2]
[348910882,1736871066422,-343.97570439,0.00011337,2]
[348910883,1736871066432,-500.0,0.00011337,2]
[348910884,1736871066442,-1112.26,0.00011337,2]
[348910885,1736871066451,-595.91029121,0.00011337,2]
[348910886,1736871066463,-500.0,0.00011337,2]
[348910887,1736871066473,-500.0,0.00011337,2]
[348910888,1736871066484,-2438.93,0.00011337,2]
[348910889,1736871066493,-500.0,0.00011337,2]
[348910890,1736871066502,-500.0,0.00011337,2]
[348910891,1736871066516,-1224.09,0.00011337,2]
[348910892,1736871066526,-500.0,0.00011337,2]
[348910893,1736871066536,-500.0,0.00011337,2]
[348910894,1736871066545,-500.0,0.00011337,2]
[348910895,1736871066555,-500.0,0.00011337,2]
[348910896,1736871066564,-1303.65,0.00011337,2]
[348910897,1736871066574,-500.0,0.00011337,2]
[348910898,1736871066583,-500.0,0.00011337,2]
[348910899,1736871066594,-603.91,0.00011337,2]
[348910900,1736871066604,-1278.65,0.00011337,2]
[348910901,1736871066614,-500.0,0.00011337,2]
[348910902,1736871066623,-500.0,0.00011337,2]
[348910903,1736871066632,-1228.06,0.00011337,2]
[348910904,1736871066642,-500.0,0.00011337,2]
[348910905,1736871066653,-500.0,0.00011337,2]
[348910906,1736871066664,-1408.95,0.00011337,2]
[348910907,1736871066674,-500.0,0.00011337,2]
[348910908,1736871066684,-500.0,0.00011337,2]
[348910909,1736871066695,-500.0,0.00011337,2]
[348910910,1736871066706,-908.24,0.00011337,2]
[348910911,1736871066715,-500.0,0.00011337,2]
[348910912,1736871066725,-500.0,0.00011337,2]
[348910913,1736871066735,-1406.37,0.00011337,2]
[348910914,1736871066744,-500.0,0.00011337,2]
[348910915,1736871066753,-1171.53,0.00011337,2]
[348910916,1736871066763,-884.27,0.00011337,2]
[348910917,1736871066772,-500.0,0.00011337,2]
[348910918,1736871066781,-500.0,0.00011337,2]
[348910919,1736871066791,-647.63,0.00011337,2]
[348910920,1736871066801,-500.0,0.00011337,2]
[348910921,1736871066810,-500.0,0.00011337,2]
[348910922,1736871066820,-1113.11,0.00011337,2]
[348910923,1736871066830,-991.47,0.00011337,2]
[348910924,1736871066842,-500.0,0.00011337,2]
[348910925,1736871066852,-1161.34,0.00011337,2]
[348910926,1736871066862,-1071.23,0.00011337,2]
[348910927,1736871066872,-789.98,0.00011337,2]
[348910928,1736871066882,-500.0,0.00011337,2]
[348910929,1736871066892,-1106.63,0.00011337,2]
[348910930,1736871066902,-500.0,0.00011337,2]
[348910931,1736871066913,-1112.53,0.00011337,2]
[348910932,1736871066926,-500.0,0.00011337,2]
[348910933,1736871066936,-1838.88,0.00011337,2]
[348910934,1736871066946,-932.16,0.00011337,2]
[348910935,1736871066956,-500.0,0.00011337,2]
[348910936,1736871066966,-500.0,0.00011337,2]
[348910937,1736871066977,-216.59,0.00011337,2]
[348910938,1736871066987,-500.0,0.00011337,2]
[348910939,1736871066999,-500.0,0.00011337,2]
[348910940,1736871067008,-500.0,0.00011337,2]
[348910941,1736871067018,-500.0,0.00011337,2]
[348910942,1736871067029,-976.4,0.00011337,2]
[348910943,1736871067039,-1337.66,0.00011337,2]
[348910944,1736871067246,-500.0,0.00011337,2]
[348910945,1736871067257,-572.39,0.00011337,2]
[348910946,1736871067268,-500.0,0.00011337,2]
[348910947,1736871067278,-758.83,0.00011337,2]
[348910948,1736871067288,-1232.64,0.00011337,2]
[348910949,1736871067297,-500.0,0.00011337,2]
[348910950,1736871067307,-1161.72,0.00011337,2]
[348910951,1736871067317,-500.0,0.00011337,2]
[348910952,1736871067326,-1402.03,0.00011337,2]
[348910953,1736871067336,-500.0,0.00011337,2]
[348910954,1736871067346,-500.0,0.00011337,2]
[348910955,1736871067355,-500.0,0.00011337,2]
[348910956,1736871067365,-500.0,0.00011337,2]
[348910957,1736871067375,-1098.11,0.00011337,2]
[348910958,1736871067384,-3138.43,0.00011337,2]
[348910959,1736871067394,-500.0,0.00011337,2]
[348910960,1736871067404,-500.0,0.00011337,2]
[348910961,1736871067414,-659.72,0.00011337,2]
[348910962,1736871067423,-986.15,0.00011337,2]
[348910963,1736871067433,-500.0,0.00011337,2]
[348910964,1736871067442,-500.0,0.00011337,2]
[348910965,1736871067451,-500.0,0.00011337,2]
[348910966,1736871067462,-500.0,0.00011337,2]
[348910967,1736871067472,-500.0,0.00011337,2]
[348910968,1736871067481,-500.0,0.00011337,2]
[348910969,1736871067491,-1032.34,0.00011337,2]
[348910970,1736871067500,-3452.91,0.00011337,2]
[348910971,1736871067509,-500.0,0.00011337,2]
[348910972,1736871067519,-500.0,0.00011337,2]
[348910973,1736871067529,-1606.61,0.00011337,2]
[348910974,1736871067538,-500.0,0.00011337,2]
[348910975,1736871067547,-500.0,0.00011337,2]
[348910976,1736871067556,-1003.31,0.00011337,2]
[348910977,1736871067566,-979.54,0.00011337,2]
[348910978,1736871067576,-756.85,0.00011337,2]
[348910979,1736871067586,-1623.91,0.00011337,2]
[348910980,1736871067596,-4038.71,0.00011337,2]
[348910981,1736871067606,-500.0,0.00011337,2]
[348910982,1736871067616,-507.27,0.00011337,2]
[348910983,1736871067626,-500.0,0.00011337,2]
[348910984,1736871067635,-500.0,0.00011337,2]
[348910985,1736871067647,-1966.64,0.00011337,2]
[348910986,1736871067656,-986.12,0.00011337,2]
[348910987,1736871067666,-151.0,0.00011338,2]
[348910988,1736871067675,-1121.12,0.00011338,2]
[348910989,1736871067684,-500.0,0.00011338,2]
[348910990,1736871067693,-2873.51,0.00011338,2]
[348910991,1736871067703,-2691.6,0.00011338,2]
[348910992,1736871067713,-151.0,0.00011339,2]
[348910993,1736871067722,-564.80212402,0.00011364,2]
[348910994,1736871067732,-1111.26722295,0.00011366,2]
[348910995,1736871067742,-3648.35,0.00011368,2]
[348910996,1736871067751,-500.0,0.00011369,2]
[348910997,1736871067761,-1024.77,0.00011369,2]
[348910998,1736871067771,-2144.27943,0.000114,2]
[348910999,1736871067780,-200.0,0.00011447,2]
[348911000,1736871067789,-200.0,0.00011447,2]
[348911001,1736871067799,-1982.02132263,0.00011453,2]
[348911002,1736871067808,-150.03564973,0.00011462,5]
[348911003,1736871067818,-150.22510464,0.00011489,5]
[348911004,1736871067829,-300.0,0.00011499,2]
[348911005,1736871067839,-422.69733397,0.000115,7]
[348911006,1736871067849,-300.0,0.000115,2]
[348911007,1736871067859,-300.0,0.000115,2]
[348911008,1736871067869,-300.0,0.000115,2]
[348911009,1736871067879,-300.0,0.000115,2]